fUSD/lending_fUSD_20251123
["ID","MTS","AMOUNT","RATE_DAILY","PERIOD"]
[394722499,1763916645732,-500.0,0.00037548,5]
[394722500,1763916645742,-500.0,0.00037548,5]
[394722501,1763916645751,-572.9799161,0.00037548,5]
[394722504,1763916646091,-500.0,0.0003765,5]
[394722505,1763916646103,-300.0,0.00037685,5]
[394722506,1763916646113,-500.0,0.00037808,120]
[394722507,1763916646122,-217.004398,0.0003799,31]
[394722508,1763916646132,-151.0,0.0003799,31]
[394722509,1763916646142,-151.0,0.0003799,31]
[394722510,1763916646152,-151.0,0.0003799,31]
[394722511,1763916646161,-151.0,0.0003799,31]
[394722512,1763916646171,-151.0,0.0003799,31]
[394722513,1763916646181,-4010.0,0.00038,5]
[394722514,1763916646191,-2000.0,0.00038,2]
[394722515,1763916646204,-162.79857801,0.00038,10]
[394722516,1763916646215,-490.0,0.00038,3]
[394722517,1763916646224,-1000.0,0.00038,7]
[394722518,1763916646233,-1376.0,0.00038034,20]
[394722519,1763916646242,-1666.47246746,0.00038082,30]
[394722520,1763916646251,-500.0,0.00038082,120]
[394722521,1763916646263,-1700.0,0.00038082,7]
[394722522,1763916646272,-1002.79897585,0.00038096,5]
[394722524,1763916646282,-151.0,0.000381,31]
[394722525,1763916646291,-1000.0,0.000381,7]
[394722526,1763916646302,-194.78,0.000381,2]
[394722527,1763916646312,-1038.56,0.0003816,2]
[394722528,1763916646322,-300.0,0.00038192,2]
[394722530,1763916646331,-194.78,0.000382,2]
[394722532,1763916646340,-421.15435024,0.00038216,2]
[394722533,1763916646350,-520.29860042,0.00038233,15]
[394722534,1763916646359,-1000.0,0.00038246,120]
[394722535,1763916646368,-1000.0,0.00038246,120]
[394722536,1763916646377,-2000.0,0.00038247,120]
[394722537,1763916646386,-1533.668,0.00038247,120]
[394722538,1763916646396,-637.89899195,0.00038255,2]
[394722539,1763916646406,-151.0,0.00038256,31]
[394722540,1763916646415,-151.0,0.00038256,30]
[394722541,1763916646424,-151.0,0.00038256,30]
[394722542,1763916646434,-254.51489732,0.00038256,2]
[394722543,1763916646444,-500.0,0.000383,8]
[394722544,1763916646453,-500.0,0.000383,30]
[394722545,1763916646463,-500.0,0.000383,120]
[394722546,1763916646472,-5000.0,0.000383,2]
[394722547,1763916646482,-506.98099901,0.000383,4]
[394722548,1763916646491,-1265.0,0.000383,7]
[394722549,1763916646500,-500.0,0.00038318,120]
[394722550,1763916646510,-615.0,0.00038329,120]
[394722551,1763916646519,-1011.0,0.0003835,8]
[394722552,1763916646529,-477.88929844,0.00038355,2]
[394722553,1763916646538,-151.0,0.00038355,31]
[394722554,1763916646548,-155.660811,0.00038355,31]
[394722555,1763916646558,-159.148597,0.00038355,31]
[394722556,1763916646568,-151.0,0.00038355,31]
[394722557,1763916646578,-151.0,0.00038355,31]
[394722558,1763916646588,-151.0,0.00038355,31]
[394722559,1763916646598,-151.0,0.00038355,31]
[394722560,1763916646607,-3704.68415718,0.00038355,8]
[394722561,1763916646617,-257.91778498,0.00038355,30]
[394722562,1763916646628,-537.6845,0.00038355,8]
[394722563,1763916646637,-731.06836987,0.00038355,8]
[394722564,1763916646659,-500.0,0.00038355,8]
[394722565,1763916646669,-565.18298562,0.00038355,8]
[394722566,1763916646678,-578.20924308,0.00038355,8]
[394722567,1763916646688,-500.0,0.00038355,8]
[394722568,1763916646698,-500.0,0.00038355,8]
[394722569,1763916646707,-500.0,0.00038355,8]
[394722570,1763916646717,-500.0,0.00038355,8]
[394722571,1763916646727,-500.0,0.00038355,8]
[394722572,1763916646737,-500.0,0.00038355,8]
[394722573,1763916646747,-500.0,0.00038355,8]
[394722574,1763916646756,-1500.0,0.00038355,8]
[394722575,1763916646766,-500.0,0.00038355,8]
[394722576,1763916646775,-500.0,0.00038355,8]
[394722577,1763916646785,-1500.0,0.00038355,8]
[394722578,1763916646795,-574.12855637,0.00038355,8]
[394722579,1763916646806,-500.0,0.00038355,8]
[394722580,1763916646816,-500.0,0.00038355,8]
[394722581,1763916646831,-1500.0,0.00038355,8]
[394722582,1763916646842,-574.12855637,0.00038355,8]
[394722583,1763916646852,-500.0,0.00038355,8]
[394722584,1763916646862,-500.0,0.00038355,8]
[394722585,1763916646871,-1500.0,0.00038355,8]
[394722586,1763916646881,-500.0,0.00038355,8]
[394722587,1763916646891,-500.0,0.00038355,8]
[394722588,1763916646900,-1500.0,0.00038355,8]
[394722589,1763916646910,-500.0,0.00038355,8]
[394722590,1763916646921,-500.0,0.00038355,8]
[394722591,1763916646931,-1500.0,0.00038355,8]
[394722592,1763916646942,-500.0,0.00038355,8]
[394722593,1763916646952,-500.0,0.00038355,8]
[394722594,1763916646963,-1500.0,0.00038355,8]
[394722595,1763916646973,-500.0,0.00038355,8]
[394722596,1763916646983,-500.0,0.00038355,8]
[394722597,1763916646994,-620.0,0.00038355,8]
[394722598,1763916647008,-1500.0,0.00038355,8]
[394722599,1763916647019,-500.0,0.00038355,8]
[394722600,1763916647030,-620.0,0.00038355,8]
[394722601,1763916647040,-1500.0,0.00038355,8]
[394722602,1763916647051,-1098.0534169,0.00038355,8]
[394722603,1763916647061,-500.0,0.00038355,8]
[394722604,1763916647072,-500.0,0.00038355,8]
[394722605,1763916647083,-500.0,0.00038355,8]
[394722606,1763916647094,-500.0,0.00038355,8]
[394722607,1763916647104,-500.0,0.00038355,8]
[394722608,1763916647115,-500.0,0.00038355,8]
[394722609,1763916647125,-500.0,0.00038355,8]
[394722610,1763916647135,-500.0,0.00038355,8]
[394722611,1763916647146,-500.0,0.00038355,8]
[394722612,1763916647156,-500.0,0.00038355,8]
[394722613,1763916647166,-500.0,0.00038355,8]
[394722614,1763916647176,-500.0,0.00038355,8]
[394722615,1763916647187,-509.45612313,0.00038355,8]
[394722616,1763916647200,-300.0,0.00038355,2]
[394722617,1763916647210,-151.0,0.00038355,31]
[394722618,1763916647221,-153.039392,0.00038355,31]
[394722619,1763916647232,-156.608048,0.00038355,31]
[394722620,1763916647243,-151.0,0.00038355,31]
[394722621,1763916647253,-151.0,0.00038355,31]
[394722622,1763916647263,-151.0,0.00038355,31]
[394722623,1763916647274,-151.0,0.00038355,31]
[394722624,1763916647285,-151.0,0.00038355,31]
[394722625,1763916647295,-156.450772,0.00038355,31]
[394722626,1763916647306,-151.0,0.00038355,31]
[394722627,1763916647316,-154.160626,0.00038355,31]
[394722628,1763916647327,-357.679546,0.00038355,31]
[394722629,1763916647337,-357.679546,0.00038355,31]
[394722630,1763916647347,-357.679546,0.00038355,31]
[394722631,1763916647357,-357.679546,0.00038355,31]
[394722632,1763916647368,-151.0,0.00038355,10]
[394722633,1763916647382,-164.454298,0.00038355,31]
[394722634,1763916647393,-151.0,0.00038355,31]
[394722635,1763916647404,-597.56,0.00038355,7]
[394722636,1763916647416,-597.56,0.00038355,7]
[394722637,1763916647427,-597.56,0.00038355,7]
[394722638,1763916647438,-597.56,0.00038355,7]
[394722639,1763916647448,-597.56,0.00038355,7]
[394722640,1763916647459,-153.738181,0.00038355,31]
[394722641,1763916647470,-500.0,0.00038355,8]
[394722642,1763916647480,-500.0,0.00038355,8]
[394722643,1763916647490,-500.0,0.00038355,8]
[394722644,1763916647501,-500.0,0.00038355,8]
[394722645,1763916647512,-500.0,0.00038355,8]
[394722646,1763916647522,-151.0,0.00038355,31]
[394722647,1763916647534,-151.0,0.00038355,31]
[394722648,1763916647546,-726.79,0.00038355,2]
[394722649,1763916647558,-726.79,0.00038355,2]
[394722650,1763916647572,-726.79,0.00038355,2]
[394722651,1763916647582,-726.79,0.00038355,2]
[394722652,1763916647593,-726.79,0.00038355,2]
[394722653,1763916647605,-726.79,0.00038355,2]
[394722654,1763916647616,-151.0,0.00038355,31]
[394722655,1763916647626,-323.904951,0.00038355,31]
[394722656,1763916647636,-1783.447252,0.00038355,30]
[394722657,1763916647647,-323.904951,0.00038355,31]
[394722658,1763916647656,-1783.447252,0.00038355,30]
[394722659,1763916647666,-1783.447252,0.00038355,30]
[394722660,1763916647676,-323.904951,0.00038355,31]
[394722661,1763916647687,-1783.447252,0.00038355,30]
[394722662,1763916647697,-323.904951,0.00038355,31]
[394722663,1763916647708,-151.0,0.00038355,31]
[394722664,1763916647718,-153.343202,0.00038355,31]
[394722665,1763916647729,-151.0,0.00038355,31]
[394722666,1763916647739,-151.0,0.00038355,31]
[394722667,1763916647750,-500.0,0.00038356,14]
[394722668,1763916647760,-500.0,0.00038356,14]
[394722669,1763916647774,-500.0,0.00038356,14]
[394722670,1763916647784,-500.0,0.00038356,14]
[394722671,1763916647795,-500.0,0.00038356,14]
[394722672,1763916647805,-500.0,0.00038356,14]
[394722673,1763916647815,-500.0,0.00038356,14]
[394722674,1763916647826,-500.0,0.00038356,14]
[394722675,1763916647837,-500.0,0.00038356,7]
[394722676,1763916647848,-500.0,0.00038356,7]
[394722677,1763916647858,-530.0,0.00038356,120]
[394722678,1763916647869,-2383.417773,0.00038356,2]
[394722679,1763916647879,-1711.83724579,0.00038356,14]
[394722680,1763916647890,-500.0,0.00038356,8]
[394722681,1763916647901,-500.0,0.00038356,8]
[394722682,1763916647914,-508.06190201,0.00038356,8]
[394722683,1763916647924,-500.0,0.00038356,8]
[394722684,1763916647935,-500.0,0.00038356,8]
[394722685,1763916647945,-300.0,0.00038356,2]
[394722686,1763916647955,-500.0,0.00038356,8]
[394722687,1763916647969,-500.0,0.00038356,8]
[394722688,1763916647980,-500.0,0.00038356,8]
[394722689,1763916647990,-500.0,0.00038356,8]
[394722690,1763916648000,-500.0,0.00038356,8]
[394722691,1763916648010,-500.0,0.00038356,8]
[394722692,1763916648020,-830.0,0.00038356,7]
[394722693,1763916648030,-500.0,0.00038356,8]
[394722694,1763916648040,-830.0,0.00038356,7]
[394722695,1763916648050,-830.0,0.00038356,7]
[394722696,1763916648062,-830.0,0.00038356,7]
[394722697,1763916648072,-500.0,0.00038356,8]
[394722698,1763916648082,-500.0,0.00038356,8]
[394722699,1763916648092,-500.0,0.00038356,8]
[394722700,1763916648102,-282.2136059,0.00038356,2]
[394722701,1763916648113,-506.0721443,0.00038356,2]
[394722702,1763916648122,-500.0,0.00038356,8]
[394722703,1763916648133,-500.0,0.00038356,8]
[394722704,1763916648143,-500.0,0.00038356,8]
[394722705,1763916648153,-500.0,0.00038356,8]
[394722706,1763916648162,-500.0,0.00038356,8]
[394722707,1763916648172,-500.0,0.00038356,8]
[394722708,1763916648182,-500.0,0.00038356,8]
[394722709,1763916648194,-500.0,0.00038356,8]
[394722710,1763916648204,-500.0,0.00038356,8]
[394722711,1763916648215,-596.85492545,0.00038356,8]
[394722712,1763916648225,-500.0,0.00038356,8]
[394722713,1763916648235,-500.0,0.00038356,8]
[394722714,1763916648245,-500.2962993,0.00038356,8]
[394722715,1763916648255,-507.99452148,0.00038356,8]
[394722716,1763916648265,-500.0,0.00038356,8]
[394722717,1763916648278,-500.0,0.00038356,8]
[394722718,1763916648287,-500.0,0.00038356,8]
[394722719,1763916648298,-500.0,0.00038356,8]
[394722720,1763916648308,-631.1519267,0.00038356,8]
[394722721,1763916648317,-500.0,0.00038356,8]
[394722722,1763916648328,-500.0,0.00038356,8]
[394722723,1763916648338,-500.0,0.00038356,8]
[394722724,1763916648350,-500.0,0.00038356,8]
[394722725,1763916648360,-500.0,0.00038356,8]
[394722726,1763916648370,-500.0,0.00038356,8]
[394722727,1763916648379,-500.0,0.00038356,8]
[394722728,1763916648389,-159.326231,0.00038356,8]
[394722729,1763916648399,-500.0,0.00038356,8]
[394722730,1763916648409,-500.0,0.00038356,8]
[394722731,1763916648420,-284.35496557,0.00038356,8]
[394722732,1763916648430,-447.693498,0.00038356,8]
[394722733,1763916648440,-500.0,0.00038356,8]
[394722734,1763916648450,-500.0,0.00038356,8]
[394722735,1763916648460,-154.25143589,0.00038356,8]
[394722736,1763916648469,-500.0,0.00038356,8]
[394722737,1763916648479,-300.274008,0.00038356,8]
[394722738,1763916648489,-758.139353,0.00038356,8]
[394722739,1763916648499,-500.0,0.00038356,8]
[394722740,1763916648510,-500.0,0.00038356,8]
[394722741,1763916648520,-500.0,0.00038356,8]
[394722742,1763916648530,-500.0,0.00038356,8]
[394722743,1763916648540,-500.0,0.00038356,8]
[394722744,1763916648550,-153.191145,0.00038356,8]
[394722745,1763916648560,-500.0,0.00038356,8]
[394722746,1763916648570,-500.0,0.00038356,8]
[394722747,1763916648580,-500.0,0.00038356,8]
[394722748,1763916648589,-500.0,0.00038356,8]
[394722749,1763916648599,-500.0,0.00038356,8]
[394722750,1763916648608,-500.0,0.00038356,8]
[394722751,1763916648618,-500.0,0.00038356,8]
[394722752,1763916648627,-500.0,0.00038356,8]
[394722753,1763916648637,-500.0,0.00038356,8]
[394722754,1763916648647,-500.0,0.00038356,8]
[394722755,1763916648656,-277.693021,0.00038356,8]
[394722756,1763916648667,-500.0,0.00038356,8]
[394722757,1763916648678,-500.0,0.00038356,8]
[394722758,1763916648687,-500.0,0.00038356,8]
[394722759,1763916648698,-500.0,0.00038356,8]
[394722760,1763916648707,-500.0,0.00038356,8]
[394722761,1763916648717,-391.81355814,0.00038356,8]
[394722762,1763916648726,-505.03243118,0.00038356,8]
[394722763,1763916648735,-500.0,0.00038356,8]
[394722764,1763916648745,-234.859181,0.00038356,8]
[394722765,1763916648755,-500.0,0.00038356,8]
[394722766,1763916648765,-609.73204727,0.00038356,8]
[394722767,1763916648775,-200.0,0.00038356,2]
[394722768,1763916648785,-861.01,0.00038356,8]
[394722769,1763916648794,-161.742455,0.00038356,8]
[394722770,1763916648803,-500.0,0.00038356,8]
[394722771,1763916648813,-500.0,0.00038356,8]
[394722772,1763916648823,-535.27666157,0.00038356,8]
[394722773,1763916648833,-500.0,0.00038356,8]
[394722774,1763916648843,-500.0,0.00038356,8]
[394722775,1763916648852,-500.0,0.00038356,8]
[394722776,1763916648862,-500.0,0.00038356,8]
[394722777,1763916648874,-500.0,0.00038356,8]
[394722778,1763916648885,-500.0,0.00038356,8]
[394722779,1763916648895,-506.11736019,0.00038356,8]
[394722780,1763916648905,-500.0,0.00038356,8]
[394722781,1763916648914,-500.0,0.00038356,8]
[394722782,1763916648924,-500.0,0.00038356,8]
[394722783,1763916648933,-154.719113,0.00038356,8]
[394722784,1763916648944,-500.0,0.00038356,8]
[394722785,1763916648954,-758.96,0.00038356,8]
[394722786,1763916648964,-501.49154631,0.00038356,8]
[394722787,1763916648973,-500.0,0.00038356,8]
[394722788,1763916648983,-500.0,0.00038356,8]
[394722789,1763916648993,-151.0,0.00038356,31]
[394722790,1763916649002,-569.49,0.00038356,8]
[394722791,1763916649012,-500.0,0.00038356,8]
[394722792,1763916649021,-500.0,0.00038356,8]
[394722793,1763916649031,-854.09,0.00038356,8]
[394722794,1763916649040,-500.0,0.00038356,8]
[394722795,1763916649050,-500.0,0.00038356,8]
[394722796,1763916649060,-500.0,0.00038356,8]
[394722797,1763916649069,-500.0,0.00038356,8]
[394722798,1763916649079,-500.0,0.00038356,8]
[394722799,1763916649089,-895.1,0.00038356,8]
[394722800,1763916649098,-882.88,0.00038356,8]
[394722801,1763916649108,-588.77,0.00038356,8]
[394722802,1763916649119,-492.14004297,0.00038356,8]
[394722803,1763916649128,-500.0,0.00038356,8]
[394722804,1763916649137,-500.0,0.00038356,8]
[394722805,1763916649147,-500.0,0.00038356,8]
[394722806,1763916649157,-876.0,0.00038356,8]
[394722807,1763916649166,-500.0,0.00038356,8]
[394722808,1763916649175,-500.0,0.00038356,8]
[394722809,1763916649185,-500.0,0.00038356,8]
[394722810,1763916649196,-1429.31,0.00038356,8]
[394722811,1763916649209,-500.0,0.00038356,8]
[394722812,1763916649218,-546.11660215,0.00038356,8]
[394722813,1763916649228,-745.87,0.00038356,8]
[394722814,1763916649240,-500.0,0.00038356,8]
[394722815,1763916649250,-500.0,0.00038356,8]
[394722816,1763916649261,-500.0,0.00038356,8]
[394722817,1763916649272,-528.76070599,0.00038356,8]
[394722818,1763916649282,-1000.8,0.00038356,8]
[394722819,1763916649292,-500.0,0.00038356,8]
[394722820,1763916649302,-500.0,0.00038356,8]
[394722821,1763916649311,-500.0,0.00038356,8]
[394722822,1763916649322,-983.6,0.00038356,8]
[394722823,1763916649331,-500.0,0.00038356,8]
[394722824,1763916649341,-191.333012,0.00038356,8]
[394722825,1763916649351,-1000.0,0.00038356,120]
[394722826,1763916649360,-500.0,0.00038356,8]
[394722827,1763916649370,-500.0,0.00038356,8]
[394722828,1763916649380,-989.9,0.00038356,8]
[394722829,1763916649390,-500.0,0.00038356,8]
[394722830,1763916649399,-500.0,0.00038356,8]
[394722831,1763916649409,-500.0,0.00038356,8]
[394722832,1763916649418,-500.0,0.00038356,8]
[394722833,1763916649428,-798.0,0.00038356,8]
[394722834,1763916649438,-500.0,0.00038356,8]
[394722835,1763916649447,-526.18854653,0.00038356,8]
[394722836,1763916649457,-500.0,0.00038356,8]
[394722837,1763916649467,-500.0,0.00038356,8]
[394722838,1763916649478,-500.0,0.00038356,8]
[394722839,1763916649487,-500.0,0.00038356,8]
[394722840,1763916649497,-500.0,0.00038356,8]
[394722841,1763916649508,-1178.37,0.00038356,8]
[394722842,1763916649517,-500.0,0.00038356,8]
[394722843,1763916649780,-500.0,0.00038356,8]
[394722844,1763916649790,-500.0,0.00038356,8]
[394722845,1763916649799,-476.72281531,0.00038356,8]
[394722846,1763916649809,-500.0,0.00038356,8]
[394722847,1763916649819,-500.0,0.00038356,8]
[394722848,1763916649829,-500.0,0.00038356,8]
[394722849,1763916649838,-500.0,0.00038356,8]
[394722850,1763916649848,-500.0,0.00038356,8]
[394722851,1763916649857,-500.0,0.00038356,8]
[394722852,1763916649866,-500.0,0.00038356,8]
[394722853,1763916649876,-500.0,0.00038356,8]
[394722854,1763916649887,-500.0,0.00038356,8]
[394722855,1763916649897,-500.0,0.00038356,8]
[394722856,1763916649907,-151.585645,0.00038356,31]
[394722857,1763916649916,-500.0,0.00038356,8]
[394722858,1763916649926,-500.0,0.00038356,8]
[394722859,1763916649935,-378.2328102,0.00038356,8]
[394722860,1763916649946,-700.0,0.00038356,120]
[394722861,1763916649955,-500.0,0.00038356,8]
[394722862,1763916649965,-500.0,0.00038356,8]
[394722863,1763916649976,-500.0,0.00038356,8]
[394722864,1763916649986,-500.0,0.00038356,8]
[394722865,1763916649996,-500.0,0.00038356,8]
[394722866,1763916650006,-500.0,0.00038356,8]
[394722867,1763916650016,-500.0,0.00038356,8]
[394722868,1763916650026,-500.0,0.00038356,8]
[394722869,1763916650036,-500.0,0.00038356,8]
[394722870,1763916650045,-500.0,0.00038356,8]
[394722871,1763916650055,-628.79,0.00038356,8]
[394722872,1763916650064,-500.0,0.00038356,8]
[394722873,1763916650074,-500.0,0.00038356,8]
[394722874,1763916650084,-500.0,0.00038356,8]
[394722875,1763916650094,-153.586438,0.00038356,31]
[394722876,1763916650103,-500.0,0.00038356,8]
[394722877,1763916650113,-500.0,0.00038356,8]
[394722878,1763916650122,-745.85,0.00038356,8]
[394722879,1763916650131,-500.0,0.00038356,8]
[394722880,1763916650141,-955.52,0.00038356,8]
[394722881,1763916650150,-500.0,0.00038356,2]
[394722882,1763916650160,-500.0,0.00038356,8]
[394722883,1763916650169,-742.86,0.00038356,8]
[394722884,1763916650179,-500.0,0.00038356,8]
[394722885,1763916650188,-151.0,0.00038356,31]
[394722886,1763916650201,-500.0,0.00038356,8]
[394722887,1763916650210,-500.0,0.00038356,8]
[394722888,1763916650220,-500.0,0.00038356,8]
[394722889,1763916650229,-1855.05,0.00038356,8]
[394722890,1763916650241,-500.0,0.00038356,8]
[394722891,1763916650250,-500.0,0.00038356,8]
[394722892,1763916650259,-500.0,0.00038356,8]
[394722893,1763916650269,-500.0,0.00038356,8]
[394722894,1763916650281,-500.0,0.00038356,8]
[394722895,1763916650290,-660.17,0.00038356,8]
[394722896,1763916650299,-500.0,0.00038356,8]
[394722897,1763916650308,-500.0,0.00038356,8]
[394722898,1763916650318,-500.0,0.00038356,8]
[394722899,1763916650327,-749.52,0.00038356,8]
[394722900,1763916650336,-500.0,0.00038356,8]
[394722901,1763916650345,-500.0,0.00038356,8]
[394722902,1763916650354,-201.40402411,0.00038356,8]
[394722903,1763916650364,-404.88567991,0.00038356,8]
[394722904,1763916650373,-540.0,0.00038356,8]
[394722905,1763916650382,-500.0,0.00038356,8]
[394722906,1763916650392,-500.0,0.00038356,8]
[394722907,1763916650401,-500.0,0.00038356,8]
[394722908,1763916650410,-500.0,0.00038356,8]
[394722909,1763916650420,-500.0,0.00038356,8]
[394722910,1763916650428,-500.0,0.00038356,8]
[394722911,1763916650438,-500.0,0.00038356,8]
[394722912,1763916650448,-500.0,0.00038356,8]
[394722913,1763916650457,-428.61701578,0.00038356,8]
[394722914,1763916650467,-500.0,0.00038356,8]
[394722915,1763916650476,-500.0,0.00038356,8]
[394722916,1763916650485,-500.0,0.00038356,8]
[394722917,1763916650494,-500.0,0.00038356,8]
[394722918,1763916650504,-752.12,0.00038356,8]
[394722919,1763916650514,-500.0,0.00038356,8]
[394722920,1763916650523,-500.0,0.00038356,8]
[394722921,1763916650533,-777.88,0.00038356,8]
[394722922,1763916650542,-500.0,0.00038356,8]
[394722923,1763916650551,-500.0,0.00038356,8]
[394722924,1763916650562,-500.0,0.00038356,8]
[394722925,1763916650571,-500.0,0.00038356,8]
[394722926,1763916650581,-1149.7,0.00038356,8]
[394722927,1763916650591,-845.52,0.00038356,8]
[394722928,1763916650601,-500.0,0.00038356,8]
[394722929,1763916650611,-500.0,0.00038356,8]
[394722930,1763916650620,-504.21,0.00038356,8]
[394722931,1763916650630,-500.0,0.00038356,8]
[394722932,1763916650640,-500.0,0.00038356,8]
[394722933,1763916650649,-500.0,0.00038356,8]
[394722934,1763916650658,-500.0,0.00038356,8]
[394722935,1763916650667,-730.8,0.00038356,8]
[394722936,1763916650677,-500.0,0.00038356,8]
[394722937,1763916650686,-500.0,0.00038356,8]
[394722938,1763916650695,-914.16,0.00038356,8]
[394722939,1763916650704,-500.0,0.00038356,8]
[394722940,1763916650713,-500.0,0.00038356,8]
[394722941,1763916650723,-519.90066661,0.00038356,8]
[394722942,1763916650732,-500.0,0.00038356,8]
[394722943,1763916650742,-500.0,0.00038356,8]
[394722944,1763916650751,-500.0,0.00038356,8]
[394722945,1763916650761,-469.71348678,0.00038356,8]
[394722946,1763916650771,-500.0,0.00038356,8]
[394722947,1763916650780,-500.0,0.00038356,8]
[394722948,1763916650790,-500.0,0.00038356,8]
[394722949,1763916650801,-530.48,0.00038356,8]
[394722950,1763916650810,-510.0,0.00038356,8]
[394722951,1763916650820,-500.0,0.00038356,8]
[394722952,1763916650830,-500.0,0.00038356,8]
[394722953,1763916650839,-500.0,0.00038356,8]
[394722954,1763916650849,-500.0,0.00038356,8]
[394722955,1763916650858,-500.0,0.00038356,8]
[394722956,1763916650868,-151.0,0.00038356,30]
[394722957,1763916650878,-500.0,0.00038356,8]
[394722958,1763916650887,-615.43,0.00038356,8]
[394722959,1763916650896,-151.0,0.00038356,30]
[394722960,1763916650906,-500.0,0.00038356,8]
[394722961,1763916650915,-589.19074749,0.00038356,8]
[394722962,1763916650925,-502.92456939,0.00038356,8]
[394722963,1763916650935,-859.84,0.00038356,8]
[394722964,1763916650944,-151.0,0.00038356,30]
[394722965,1763916650953,-151.0,0.00038356,30]
[394722966,1763916650963,-261.70934,0.00038356,30]
[394722967,1763916650972,-500.0,0.00038356,8]
[394722968,1763916650982,-500.0,0.00038356,8]
[394722969,1763916650991,-151.0,0.00038356,31]
[394722970,1763916651000,-500.0,0.00038356,8]
[394722971,1763916651009,-151.0,0.00038356,31]
[394722972,1763916651019,-828.88,0.00038356,8]
[394722973,1763916651029,-500.0,0.00038356,8]
[394722974,1763916651038,-762.58,0.00038356,8]
[394722975,1763916651048,-500.0,0.00038356,8]
[394722976,1763916651057,-500.0,0.00038356,8]
[394722977,1763916651067,-500.0,0.00038356,8]
[394722978,1763916651077,-500.0,0.00038356,8]
[394722979,1763916651087,-500.0,0.00038356,8]
[394722980,1763916651097,-552.9,0.00038356,8]
[394722981,1763916651106,-506.34547075,0.00038356,8]
[394722982,1763916651116,-500.0,0.00038356,8]
[394722983,1763916651126,-500.0,0.00038356,8]
[394722984,1763916651136,-500.0,0.00038356,8]
[394722985,1763916651145,-500.0,0.00038356,8]
[394722986,1763916651154,-487.9322818,0.00038356,8]
[394722987,1763916651164,-500.0,0.00038356,8]
[394722988,1763916651174,-500.0,0.00038356,8]
[394722989,1763916651183,-500.0,0.00038356,8]
[394722990,1763916651194,-500.0,0.00038356,8]
[394722991,1763916651206,-500.0,0.00038356,8]
[394722992,1763916651216,-500.0,0.00038356,8]
[394722993,1763916651225,-500.0,0.00038356,8]
[394722994,1763916651234,-500.0,0.00038356,8]
[394722995,1763916651247,-500.0,0.00038356,8]
[394722996,1763916651256,-823.48,0.00038356,8]
[394722997,1763916651266,-680.04,0.00038356,8]
[394722998,1763916651277,-500.0,0.00038356,8]
[394722999,1763916651287,-500.0,0.00038356,8]
[394723000,1763916651297,-500.0,0.00038356,8]
[394723001,1763916651306,-1042.12,0.00038356,8]
[394723002,1763916651315,-500.0,0.00038356,8]
[394723003,1763916651324,-151.0,0.00038356,31]